Cogmind - Beta 13 @@@ ROGUE MODE // 2024.06.01 @ 16:27:32 Player: Comet Result: Destroyed by D-53 Grenadier with Mini Grenade Launcher Performance ------------- Evolutions (0) 0 Regions Visited (2) 400 Robots Destroyed (33) 165 Value Destroyed (644) 644 Prototype IDs (1) 20 Alien Tech Used (0) 0 Bonus (60) 60 TOTAL SCORE: 1289 Bonus ------- Follower Combat Kills 60 Cogmind --------- Core Integrity 0/250 Matter 219/300 Energy 160/160 System Corruption 1% Temperature Cool (69) Movement Walking (120) Location -10/Mines Parts ------- > --- POWER (1) -------- Light Nuclear Core > --- PROPULSION (2) --- Aluminum Leg Aluminum Leg > --- UTILITY (2) ------ Medium Storage Unit Core Shielding > --- WEAPON (2) ------- Improved Light Cannon > --- INVENTORY (10) --- Light Treads Large Storage Unit Visual Processing Unit Sensor Array Signal Interpreter Improved Terrain Scanner Hacking Suite Hacking Suite Light Assault Rifle Hammer Peak State ------------ > --- POWER ------------ Light Nuclear Core > --- PROPULSION ------- Light Treads Light Treads > --- UTILITY ---------- Small Storage Unit Improved Terrain Scanner > --- WEAPON ----------- Improved Light Cannon Improved Light Cannon > --- INVENTORY -------- Light Treads Huge Storage Unit Visual Processing Unit Signal Interpreter Hacking Suite Hacking Suite Hammer [Rating: 14] Favorites ----------- Power Light Nuclear Core Engine Ion Engine Power Core Light Nuclear Core Propulsion Aluminum Leg Treads Light Treads Leg Aluminum Leg Utility Small Storage Unit Device Improved Terrain Scanner Storage Small Storage Unit Processor Transport Network Coupler Protection Core Shielding Weapon Improved Light Cannon Energy Gun Improved Medium Laser Ballistic Gun Light Assault Rifle Ballistic Cannon Improved Light Cannon Launcher Grenade Launcher Build | -11 -10 -10 ------- Run | Yrd Mat Min Slots Evolved . | . . . Power . | . . . Propulsion . | . . . Utility . | . . . Weapon . | . . . Parts Attached 28 | 7 19 2 Power 4 | 1 3 . Engine 2 | 1 1 . Core 2 | . 2 . Reactor . | . . . Propulsion 5 | 2 3 . Treads 3 | 2 1 . Leg 2 | . 2 . Wheel . | . . . Hover . | . . . Flight . | . . . Utility 7 | 2 4 1 Device 3 | 1 2 . Storage 2 | 1 1 . Processor 1 | . 1 . Hackware . | . . . Protection 1 | . . 1 Artifact . | . . . Weapon 12 | 2 9 1 Energy Gun 1 | . 1 . Energy Cannon . | . . . Ballistic Gun 4 | 2 2 . Ballistic Cannon 5 | . 5 . Launcher 2 | . 1 1 Special Weapon . | . . . Impact Weapon . | . . . Slashing Weapon . | . . . Piercing Weapon . | . . . Special Melee Weapon . | . . . Unidentified Prototypes 1 | . 1 . Parts Lost 1 | . . 1 Power . | . . . Propulsion . | . . . Utility . | . . . Weapon 1 | . . 1 Highest Loss Streak 1 | . . 1 To Critical Strikes . | . . . Average Slot Usage (%) 99 | . 99 99 Engine 6 | . 7 . Core 7 | . 5 14 Treads 12 | . 15 . Leg 15 | . 12 28 Device 7 | . 9 . Storage 14 | . 14 14 Processor 3 | . 4 . Protection 2 | . . 13 Ballistic Gun 8 | . 7 13 Ballistic Cannon 15 | . 15 14 Launcher 3 | . 4 . Naked Turns . | . . . Heaviest Build 23 | 13 23 21 Greatest Support 40 | 40 40 20 Greatest Overweight (x) 1 | . 1 1 Average Overweight (x) . | . . 1 Largest Inventory Capacity 10 | 8 10 10 Average Capacity 8 | 7 8 10 Most Carried 10 | 1 9 10 Average Carried 7 | . 7 9 Final Capacity 10 | 8 10 10 Final Carried 10 | 1 9 10 Class Distribution -------------------- 99% | Mutant Dominant Class ---------------- Mutant | -10/Materials Mutant | -10/Mines Resources | -11 -10 -10 ----------- Run | Yrd Mat Min Matter Collected 853 | 228 554 71 Remotely . | . . . Salvage Created 885 | 132 632 121 Parts 75 | 14 59 2 Haulers Intercepted 2 | . 2 . Recyclers Shooed 1 | . 1 . Parts Field Recycled . | . . . Retrieved Matter . | . . . Parts Self-Destructed . | . . . Prevented . | . . . Kills | -11 -10 -10 ------- Run | Yrd Mat Min Combat Hostiles Destroyed 17 | . 16 1 Guns 7 | . 7 . Cannons 10 | . 9 1 Classes Destroyed 8 | 2 6 . Worker 4 | . 3 1 Tunneler 4 | 4 . . Hauler 2 | . 2 . Recycler 2 | 1 . 1 Operator 2 | . 2 . Watcher 2 | . 2 . Swarmer 3 | . 3 . Grunt 14 | . 13 1 Best Kill Streak 8 | 3 8 2 Combat Bots Only 3 | . 3 1 Max Kills in Single Turn 1 | 1 1 1 Gunslinging . | . . . Exploded . | . . . Melee . | . . . Uniques/NPCs Destroyed . | . . . Combat | -11 -10 -10 -------- Run | Yrd Mat Min Hostile Shots Fired 75 | . 60 15 Missed 20 | . 17 3 Damage Taken 961 | . 537 424 Core 251 | . 151 100 Absorbed by Shields . | . . . Redirected to Shielding 18 | . . 18 Regen/Repaired (Parts) 20 | . 20 . Core Remaining (%) 100 | 100 . . Volleys Fired 116 | 27 73 16 Largest 2 | 2 2 2 Hottest 78 | 40 78 69 Shots Fired 217 | 44 146 27 Gun 147 | 44 96 7 Cannon 65 | . 49 16 Launcher 5 | . 1 4 Special . | . . . Kinetic 212 | 44 145 23 Thermal . | . . . Explosive 5 | . 1 4 Electromagnetic . | . . . Robot Hit Streak 15 | 8 15 7 Robot Miss Streak 8 | 2 8 4 Penetration Max . | . . . Secondary Targets 1 | . 1 . Max Gunslinging Chain 1 | . 1 . Shots Hit Robots 122 | 27 83 12 Core Hits 67 | 10 45 12 Critical Kills . | . . . Critical Parts Destroyed 1 | . 1 . Critical Strikes 7 | . 6 1 Destroy 1 | . 1 . Blast 6 | . 5 1 Melee Attacks . | . . . Impact . | . . . Slashing . | . . . Piercing . | . . . Sneak Attacks . | . . . Combat Hostiles . | . . . Follow-up Attacks . | . . . Damage Inflicted 1654 | 210 1075 369 Guns 695 | 210 460 25 Cannons 765 | . 603 162 Explosions 173 | . . 173 Melee . | . . . Ramming 21 | . 12 9 Kinetic 1460 | 210 1063 187 Thermal . | . . . Explosive 173 | . . 173 Electromagnetic . | . . . Impact . | . . . Slashing . | . . . Piercing . | . . . Highest Corruption 1 | . 1 1 Average Corruption 1 | . 1 1 Corruption Purged . | . . . Corruption Blocked . | . . . Effects 6 | . 4 2 Matter Fused 1 | . . 1 Heat Flow Errors 1 | . . 1 Data Loss (major) 1 | . 1 . Misfires 1 | . 1 . Alerts 1 | . 1 . Weapon Failures 1 | . 1 . Overload Shots . | . . . Overflow Damage 27 | . 7 20 Projectiles 12 | . 7 5 Explosions 15 | . . 15 Melee . | . . . Knockbacks 15 | . 11 4 Impact . | . . . Kinetic 12 | . 9 3 Secondary 3 | . 2 1 Self-Inflicted Damage . | . . . Shots . | . . . Rammed 1 | . 1 . Targets Rammed 5 | . 3 2 Kicked 3 | . 1 2 Crushed 1 | . 1 . Highest Temperature 151 | . 78 151 Average Temperature 27 | . 15 50 Received Heat Transfer 213 | . 168 45 Siege Activations . | . . . Robots Corrupted . | . . . Combat Hostiles . | . . . Parts Fried . | . . . Impact Corruptions . | . . . Robots Melted . | . . . Combat Hostiles . | . . . Parts Melted . | . . . Heat Transferred . | . . . Parts Sabotaged . | . . . Parts Stolen . | . . . Parts Stripped . | . . . Power Chain Reactions . | . . . Alert | -11 -10 -10 ------- Run | Yrd Mat Min Peak Influence 264 | 25 264 130 Initial 16 | . 16 1 Average 77 | 9 93 43 Maximum Alert Level 1 | . 1 . Low Security (%) 92 | 100 90 100 Level 1 7 | . 9 . Level 2 . | . . . Level 3 . | . . . Level 4 . | . . . Level 5 . | . . . High Security . | . . . Max Security . | . . . Squads Dispatched 4 | . 4 . Investigation 2 | . 2 . Extermination . | . . . Reinforcement 2 | . 2 . Assault . | . . . Garrison . | . . . Intercept . | . . . Searches Triggered . | . . . Construction Impeded . | . . . Haulers Reinforced . | . . . Active Scanning Responses . | . . . Cargo Convoy Interrupts . | . . . Stealth | -11 -10 -10 --------- Run | Yrd Mat Min Distress Signals 1 | . 1 . Communications Jammed . | . . . Distress Signals . | . . . Times Spotted 28 | . 24 4 Peak Tracking Total 5 | . 5 2 Tactical Retreats 3 | . 2 1 Traps | -11 -10 -10 ------- Run | Yrd Mat Min Traps Triggered 4 | . 4 . Indirectly . | . . . Trap Hack Attempts . | . . . Triggered . | . . . Disarmed . | . . . Reprogrammed . | . . . Reused . | . . . Traps Extracted . | . . . Installed . | . . . Triggered . | . . . Machines | -11 -10 -10 ---------- Run | Yrd Mat Min Machines Disabled . | . . . Max in Single Turn . | . . . Machines Repaired . | . . . Machines Dismantled . | . . . Machines Sabotaged . | . . . Overloaded Fab Kills . | . . . Hacking | -11 -10 -10 --------- Run | Yrd Mat Min Machines Accessed 7 | . 7 . Terminals 6 | . 6 . Fabricators . | . . . Repair Stations 1 | . 1 . Recycling Units . | . . . Scanalyzers . | . . . Garrison Access . | . . . Total Hacks 15 | . 15 . Successful 5 | . 5 . Failed 10 | . 10 . Catastrophic 5 | . 5 . Database Lockouts . | . . . Manual 9 | . 9 . Terminals 13 | . 13 . Fabricators . | . . . Repair Stations 2 | . 2 . Recycling Units . | . . . Scanalyzers . | . . . Garrison Access . | . . . Terminal Hacks 3 | . 3 . Branch Access Points 1 | . 1 . Terminal Index 1 | . 1 . Locate Traps 1 | . 1 . Fabricator Hacks . | . . . Repair Station Hacks 2 | . 2 . Scan Component 1 | . 1 . Repair 1 | . 1 . Recycling Unit Hacks . | . . . Scanalyzer . | . . . Garrison Access Hacks . | . . . Unauthorized Hacks . | . . . Terminals . | . . . Fabricators . | . . . Repair Stations . | . . . Recycling Units . | . . . Scanalyzers . | . . . Garrison Access . | . . . Data Cores Recovered . | . . . Used . | . . . Hacking Detections 4 | . 4 . Full Trace Events 2 | . 2 . Feedback Events 1 | . 1 . Corruption 1 | . 1 . Feedback Blocked . | . . . Robot Schematics Acquired . | . . . Robots Built . | . . . Authchips . | . . . Time . | . . . Total Robot Build Rating . | . . . Part Schematics Acquired . | . . . Parts Built . | . . . Authchips . | . . . Time . | . . . Total Part Build Rating . | . . . Parts Repaired 1 | . 1 . Time 38 | . 38 . Parts Recycled . | . . . Recycled Matter . | . . . Retrieved Matter . | . . . Retrieved Components . | . . . Parts Scanalyzed . | . . . Part Schematics Acquired . | . . . Parts Damaged . | . . . Bothacking | -11 -10 -10 ------------ Run | Yrd Mat Min Used RIF Installer . | . . . Robots Hacked . | . . . Non-combat . | . . . Combat . | . . . Robot Hacks Applied . | . . . Relay Couplers Released . | . . . Fabnet Peak Effective % . | . . . Robots Rewired . | . . . Allies Hacked . | . . . Hacks Repelled . | . . . Allies | -11 -10 -10 -------- Run | Yrd Mat Min Total Allies 2 | . . 2 Largest Group 2 | . . 2 Highest-Rated Group 45 | . . 45 Highest-Rated Ally 31 | . . 31 Total Orders . | . . . Ally Attacks 6 | . . 6 Total Damage 102 | . . 102 Kills 4 | . . 4 Allies Corrupted . | . . . Allies Melted . | . . . Intel | -11 -10 -10 ------- Run | Yrd Mat Min Robot Analysis Total . | . . . Derelict Logs Recovered . | . . . Drone Launches . | . . . Drone Recoveries . | . . . Exploration | -11 -10 -10 ------------- Run | Yrd Mat Min Turns Passed 2798 | 214 2088 496 Spaces Moved 1408 | 90 1085 233 Core 2 | 2 . . Treads 636 | 88 548 . Legs 770 | . 537 233 Wheels . | . . . Hover . | . . . Flight . | . . . Fastest Speed 50 | 50 120 190 Average Speed 165 | 157 160 190 Slowest Speed 190 | 160 190 190 Overloaded Moves . | . . . Propulsion Burnouts . | . . . Robots Hopped . | . . . Cave-ins Triggered . | . . . Exploration Rate (%) 51 | 7 99 49 Regions Visited 2 Branch Regions 1 Pre-discovered Areas 1 | . . 1 Known Exits Taken 1 | . 1 . Unknown Exits Taken 1 | 1 . . Scrap Searched 1 | . . 1 Spaces Dug . | . . . Terrain Destroyed 30 | . 8 22 Melee . | . . . Projectile 5 | . 2 3 AOE 25 | . 6 19 Terrain Rammed . | . . . Walls Destroyed . | . . . Machines Disabled . | . . . Actions | -11 -10 -10 --------- Run | Yrd Mat Min Total 1685 | 124 1302 259 Wait 101 | . 96 5 Move 1406 | 89 1084 233 Hop . | . . . Pick Up 13 | 1 12 . Fast Attach 22 | 7 14 1 Attach 1 | . 1 . Detach 2 | . 1 1 Swap 5 | . 4 1 Drop 14 | . 14 . Fire 116 | 27 73 16 Melee . | . . . Ram . | . . . Kick 3 | . 1 2 Crush 2 | . 2 . Escape Stasis . | . . . Rewire . | . . . Trap . | . . . Miscellaneous . | . . . Route ------- -11/Scrapyard -10/Materials (discovered 4 exits: [*Mat x3] / *Min) -10/Mines (discovered 2 exits: [*Mat x2]) History --------- Turn | Location | Event 18 | -11/Scrapyard | Discovered new exit (range 15) 215 | -11/Scrapyard | Entered Materials 266 | -10/Materials | Discovered new exit (range 11) 310 | -10/Materials | Build established: Mutant 770 | -10/Materials | Discovered new exit (range 7) 829 | -10/Materials | Discovered new exit (range 5) 1044 | -10/Materials | Discovered new exit (range 9) 1054 | -10/Materials | Core integrity fell below 50% 1641 | -10/Materials | Repaired Lgt. Nuclear Core 2010 | -10/Materials | Identified exit to Mines 2303 | -10/Materials | Entered Mines 2373 | -10/Mines | Discovered new exit (range 8) 2391 | -10/Mines | Assembled infested the area 2438 | -10/Mines | Discovered new exit (range 4) 2445 | -10/Mines | Learned location of Storage (-8) 2788 | -10/Mines | Core integrity fell below 20% 2799 | -10/Mines | Destroyed by D-53 Grenadier with Mini Grenade Launcher Last Messages --------------- U-05 Engineer builds a Wall. K-01 Serf collects debris. K-01 Serf cleans the Plasma Injector. U-05 Engineer builds a Wall. K-01 Serf cleans the Plasma Injector. K-01 Serf collects debris. Destroyed Tractor Beam. D-53 Grenadier destroyed. K-01 Serf cleans the Plasma Injector. SL-5MI(g) destroyed. C3-PMC(z) destroyed. K-01 Serf collects debris. Destroyed Shock Absorption System. Grenade Launcher destroyed. K-01 Serf cleans the Plasma Injector. The unstable cave ceiling collapses. K-01 Serf cleans the Plasma Injector. The unstable cave ceiling collapses. K-01 Serf collects debris. The unstable cave ceiling collapses. Map ----- +----------------------------------------------------+ | | | | | | | | | | | | | ?????????????????????????????????????????????????? | | ?????????????????????????????????????????????????? | | ?????????????????????????????????????????????????? | | ????????????##################???????????????????? | | ????????????# #???????????????????? | | ????????????# #???????????????????? | | ????????????# #???????????????????? | | ????????????# """ """ """ #???????????????????? | | ????????????# """ """ """ #???????????????????? | | ????????????# """ """ """ #???????????????????? | | ????????????# k #???????????????????? | | ????????????# """*""" """ #???????????????????? | | ????????????# """=""" """ #???????????????????? | | ????? ??????# """%""" """ #???????????????????? | | ????????????# [%=%* #???????????????????? | | #???????????# * #???????????????????? | | ##??????????######### = #???????????????????? | | ?????????????????## ####??????????????????? | | ???????????????#### #??????????????????? | | ?????#????????## ## @ #??????????????????? | | #???? #????##### # #??????????????????? | | #??? ##?## # #??????????????????? | | ## ### ## ##??????????????????? | | ## ## #???????????????????? | | %% #???????????????????? | | ### ##### #???????????????????? | | ### ##?????## ### ???????????????? | | #????? ##???????# %d =%= ?????????????? | | #???????????????# % %=% = ?????????????? | | #???????????????# ### ?????????????? | | %##???????????????#% ####??????????????????? | | ##?????#??????????# # # #?????????????????????? | | ##????????????????## ###? ??????????????????????? | | #??????????????????# ##?#??????????????????????? | | #??????????????????# #????????????????????????? | | #???#??????????????# #????????????????????????? | | #??????????????????# # #????????????????????????? | | ##########?????????# #????????????????????????? | | #?????????# #????????????????????????? | | "" #?????????# ##????????????????????????? | | "" #?????????# ##?????????????????????????? | | "" #?????????# #??????????????????????????? | | < #?????????# #??????????????????????????? | | "" #?????????# #??????????????????????????? | +----------------------------------------------------+ Best States ------------- Heat Dissipation 25 Energy Generation 14 Energy Capacity 250 Matter Stores 300 Matter Capacity 300 Sight Range 16 Terrain Scan Range 16 Terrain Scan Density 10 Core Shielding 20 Evasion (%) 55 Recoil Reduction 2 Item Schematics ----------------- None Robot Schematics ------------------ None Fabricated ------------ Nothing Alien Tech Used ----------------- None Achievements -------------- Maybe Next Time I'll Detach My Launcher Challenges ------------ None Game ------ Seed GravitonArcMantle Manual? 0 Play Time 00:19:30 Cumulative 24.3 hours Start 2024.06.01 @ 16:06:24 End 2024.06.01 @ 16:27:32 Sessions 1 Manual Loads 0 Difficulty Rogue Special Mode None Game No. 11 Rogue 11 Adventurer 0 Explorer 0 Win Type - Total 0 Types 0/0/0/0/0/0/0/0/0 Lore% 16 Gallery% 23 Achievement% 23 Wizard Run 0 Options --------- Layout 0 ASCII 0 Keyboard 0 Movement Mouse Keybinds 0 Fullscreen 1 Font 18/SmallcapsGlow Map View 76x50 Zoom Use 0% Tactical HUD 0 Map Filters NONE Filters NONE Steam 1 RUN: 45cb31be-1f82-4a80-91ab-960980f60f22